fUSD/lending_fUSD_20240215
["ID","MTS","AMOUNT","RATE_DAILY","PERIOD"]
[314082156,1707963063179,-155.26614049,0.00038747,2]
[314082157,1707963063189,-655.98311819,0.00038747,2]
[314082158,1707963063201,-310.45282979,0.00038747,2]
[314082159,1707963063211,-4130.09788337,0.00038747,7]
[314082160,1707963063221,-249.09812209,0.00038747,15]
[314082161,1707963063231,-697.32652648,0.00038747,120]
[314082162,1707963063241,-5791.38571232,0.00038747,4]
[314082163,1707963063251,-10225.62186964,0.00038747,2]
[314082164,1707963063260,-875.25529322,0.00038747,120]
[314082165,1707963063270,-1173.31662491,0.00038747,120]
[314082166,1707963063280,-553.80058666,0.00038747,14]
[314082167,1707963063290,-1257.90698292,0.00038747,30]
[314082168,1707963063300,-412.57064113,0.00038747,120]
[314082169,1707963063316,-4492.01714467,0.00038747,2]
[314082170,1707963063328,-166.45327305,0.00038747,120]
[314082171,1707963063340,-777.0,0.00038747,2]
[314082172,1707963063349,-213.35855301,0.00038747,30]
[314082173,1707963063360,-906.05642343,0.00038747,2]
[314082174,1707963063370,-615.20913584,0.00038768,7]
[314082175,1707963063380,-500.0,0.00038768,7]
[314082176,1707963063390,-500.0,0.00038768,7]
[314082177,1707963063400,-501.88680744,0.00038768,7]
[314082178,1707963063412,-500.0,0.00038768,7]
[314082179,1707963063420,-1000.0,0.00038768,7]
[314082180,1707963063429,-500.0,0.00038768,7]
[314082181,1707963063438,-547.54995438,0.00038768,7]
[314082182,1707963063447,-500.0,0.00038768,7]
[314082183,1707963063456,-500.0,0.00038768,7]
[314082184,1707963063464,-570.63802259,0.00038768,7]
[314082185,1707963063473,-500.0,0.00038768,7]
[314082186,1707963063482,-565.97245654,0.00038768,7]
[314082187,1707963063490,-617.64918608,0.00038768,7]
[314082188,1707963063499,-500.0,0.00038768,7]
[314082189,1707963063507,-529.11740523,0.00038768,7]
[314082190,1707963063516,-556.93023761,0.00038768,7]
[314082191,1707963063526,-524.43762167,0.00038768,7]
[314082192,1707963063535,-500.0,0.00038768,7]
[314082193,1707963063543,-542.07550084,0.00038768,7]
[314082194,1707963063552,-328.97979401,0.00038768,7]
[314082195,1707963063561,-533.45484258,0.00038768,7]
[314082196,1707963063570,-522.06728,0.00038768,7]
[314082197,1707963063652,-544.22145492,0.00038768,7]
[314082198,1707963063668,-533.6990058,0.00038768,7]
[314082199,1707963063676,-500.0,0.00038768,7]
[314082200,1707963063685,-541.97525953,0.00038768,7]
[314082201,1707963063695,-500.0,0.00038768,7]
[314082202,1707963063704,-500.0,0.00038768,7]
[314082203,1707963063713,-562.74855923,0.00038768,7]
[314082204,1707963063722,-542.50621005,0.00038768,7]
[314082205,1707963063731,-500.0,0.00038768,7]
[314082206,1707963063740,-564.41091151,0.00038768,7]
[314082207,1707963063748,-500.0,0.00038768,7]
[314082208,1707963063757,-516.30976998,0.00038769,7]
[314082209,1707963063766,-523.21399491,0.00038769,7]
[314082210,1707963063775,-281.69248044,0.00038769,7]
[314082211,1707963063784,-500.0,0.00038769,7]
[314082212,1707963063793,-500.0,0.00038769,7]
[314082213,1707963063802,-500.0,0.00038769,7]
[314082214,1707963063810,-531.14340476,0.00038769,7]
[314082215,1707963063819,-500.0,0.00038769,7]
[314082216,1707963063828,-517.85945743,0.00038769,7]
[314082217,1707963063837,-518.50294046,0.00038769,7]
[314082218,1707963063845,-522.0319016,0.00038769,7]
[314082219,1707963063854,-528.22892851,0.00038769,7]
[314082220,1707963063863,-533.414489,0.00038769,7]
[314082221,1707963063872,-521.00867001,0.00038769,7]
[314082222,1707963063881,-532.41733172,0.00038769,7]
[314082223,1707963063890,-516.95677144,0.00038769,7]
[314082224,1707963063900,-514.40487355,0.00038769,7]
[314082225,1707963063909,-500.0,0.00038769,7]
[314082226,1707963063918,-533.74632576,0.00038769,7]
[314082227,1707963063927,-529.67678662,0.00038769,7]
[314082228,1707963063936,-500.0,0.00038769,7]
[314082229,1707963063947,-506.70872341,0.00038769,7]
[314082230,1707963063956,-524.47292361,0.00038769,7]
[314082231,1707963063966,-521.2514097,0.00038769,7]
[314082232,1707963063975,-517.02098907,0.00038769,7]
[314082233,1707963063984,-507.98715626,0.00038769,7]
[314082234,1707963063993,-580.12786824,0.00038769,7]
[314082235,1707963064002,-509.42820223,0.00038769,7]
[314082236,1707963064011,-512.22557376,0.00038769,7]
[314082237,1707963064021,-510.97541353,0.00038769,2]
[314082238,1707963064030,-532.08885621,0.00038769,7]
[314082239,1707963064039,-510.62743783,0.00038769,7]
[314082240,1707963064049,-529.14034887,0.00038769,7]
[314082241,1707963064058,-519.85982458,0.00038769,7]
[314082242,1707963064068,-505.88300086,0.00038769,7]
[314082243,1707963064077,-514.35216632,0.00038769,7]
[314082244,1707963064087,-500.0,0.00038769,7]
[314082245,1707963064096,-507.57634302,0.00038769,7]
[314082246,1707963064106,-513.07399887,0.00038769,7]
[314082247,1707963064115,-517.37181123,0.00038769,7]
[314082248,1707963064125,-515.99622908,0.00038769,7]
[314082249,1707963064134,-513.54020715,0.00038769,7]
[314082250,1707963064143,-526.7044343,0.00038769,7]
[314082251,1707963064154,-525.38132364,0.00038769,7]
[314082252,1707963064165,-500.0,0.00038769,7]
[314082253,1707963064175,-504.02924313,0.00038769,7]
[314082254,1707963064184,-500.0,0.00038769,7]
[314082255,1707963064198,-517.58200189,0.00038769,7]
[314082256,1707963064225,-500.0,0.00038769,7]
[314082257,1707963064235,-500.0,0.00038769,7]
[314082258,1707963064246,-509.59231474,0.00038769,7]
[314082259,1707963064256,-511.29709236,0.00038769,7]
[314082260,1707963064267,-513.51652598,0.00038769,7]
[314082261,1707963064277,-510.41674453,0.00038769,7]
[314082262,1707963064288,-514.63876129,0.00038769,7]
[314082263,1707963064298,-500.0,0.00038769,7]
[314082264,1707963064315,-517.77898638,0.00038769,7]
[314082265,1707963064328,-500.0,0.00038769,7]
[314082266,1707963064347,-631.80722791,0.00038769,7]
[314082267,1707963064360,-511.45818085,0.00038769,7]
[314082268,1707963064371,-500.0,0.00038769,7]
[314082269,1707963064381,-547.18185331,0.00038769,7]
[314082270,1707963064391,-522.72461102,0.00038769,7]
[314082271,1707963064402,-512.44433726,0.00038769,7]
[314082272,1707963064415,-500.0,0.00038769,7]
[314082273,1707963064426,-523.0328962,0.00038769,7]
[314082274,1707963064437,-517.13296712,0.00038769,7]
[314082275,1707963064456,-521.4223298,0.00038769,7]
[314082276,1707963064468,-537.8573434,0.00038769,7]
[314082277,1707963064479,-6590.080534,0.00038797,2]
[314082278,1707963064490,-829343.62104943,0.000388,30]
[314082279,1707963064499,-150.1,0.000388,2]
[314082280,1707963064509,-151.0,0.000388,7]
[314082281,1707963064520,-151.0,0.000388,7]
[314082282,1707963064531,-204.468401,0.000388,7]
[314082283,1707963064542,-151.0,0.000388,7]
[314082284,1707963064551,-151.0,0.000388,7]
[314082285,1707963064561,-151.0,0.000388,7]
[314082286,1707963064570,-210.837961,0.000388,7]
[314082287,1707963064580,-210.837961,0.000388,7]
[314082288,1707963064591,-960.6,0.00038904,7]
[314082289,1707963064601,-1581.16,0.00038904,7]
[314082290,1707963064612,-500.0,0.00038904,7]
[314082291,1707963064623,-500.0,0.00038904,7]
[314082292,1707963064634,-500.0,0.00038904,7]
[314082293,1707963064645,-2037.84,0.00038904,7]
[314082294,1707963064656,-500.0,0.00038904,7]
[314082295,1707963064666,-500.0,0.00038904,7]
[314082296,1707963064677,-500.0,0.00038904,7]
[314082297,1707963064687,-500.0,0.00038904,7]
[314082298,1707963064702,-500.0,0.00038904,7]
[314082299,1707963064711,-770.42,0.00038904,7]
[314082300,1707963064723,-1096.71,0.00038904,7]
[314082301,1707963064734,-1081.2,0.00038904,7]
[314082302,1707963064744,-500.0,0.00038904,7]
[314082303,1707963064755,-500.0,0.00038904,7]
[314082304,1707963064766,-520.05,0.00038904,7]
[314082305,1707963064778,-918.55,0.00038904,7]
[314082306,1707963064789,-500.0,0.00038904,7]
[314082307,1707963064799,-303.23927754,0.00038904,7]
[314082308,1707963064810,-500.0,0.00038904,7]
[314082309,1707963064820,-292.51117907,0.00038904,7]
[314082310,1707963064830,-926.67,0.00038904,7]
[314082311,1707963064840,-1098.7,0.00038904,7]
[314082312,1707963064851,-500.0,0.00038904,7]
[314082313,1707963064862,-500.0,0.00038904,7]
[314082314,1707963064872,-567.68,0.00038904,7]
[314082315,1707963064882,-2422.19,0.00038904,7]
[314082316,1707963064892,-500.0,0.00038904,7]
[314082317,1707963064903,-500.0,0.00038904,7]
[314082318,1707963064913,-500.0,0.00038904,7]
[314082319,1707963064923,-535.8,0.00038904,7]
[314082320,1707963064934,-500.0,0.00038904,7]
[314082321,1707963064945,-500.0,0.00038904,7]
[314082322,1707963064955,-500.0,0.00038904,7]
[314082323,1707963064965,-500.0,0.00038904,7]
[314082324,1707963064974,-3295.040267,0.00038997,2]
[314082325,1707963064984,-413992.0,0.00039,2]
[314082326,1707963064993,-203.0,0.00039031,10]
[314082327,1707963065002,-500.0,0.00039042,7]
[314082328,1707963065012,-500.0,0.00039042,7]
[314082329,1707963065022,-500.0,0.00039042,7]
[314082330,1707963065031,-1000.0,0.00039042,7]
[314082331,1707963065041,-500.0,0.00039042,7]
[314082332,1707963065050,-553.7135467,0.00039042,7]
[314082333,1707963065059,-500.0,0.00039042,7]
[314082334,1707963065068,-500.0,0.00039042,7]
[314082335,1707963065077,-247.67486266,0.00039042,7]
[314082336,1707963065086,-500.0,0.00039042,7]
[314082337,1707963065095,-500.0,0.00039042,7]
[314082338,1707963065184,-600.97659424,0.00039042,7]
[314082339,1707963065194,-500.0,0.00039042,7]
[314082340,1707963065203,-633.15781331,0.00039042,7]
[314082341,1707963065213,-500.0,0.00039042,7]
[314082342,1707963065222,-329.54,0.00039043,7]
[314082343,1707963065232,-170.70729447,0.00039043,7]
[314082344,1707963065241,-521.67518688,0.00039043,7]
[314082345,1707963065251,-500.0,0.00039043,7]
[314082346,1707963065260,-500.0,0.00039043,7]
[314082347,1707963065270,-522.99257952,0.00039043,7]
[314082348,1707963065279,-500.0,0.00039043,7]
[314082349,1707963065289,-500.0,0.00039043,7]
[314082350,1707963065299,-568.50963539,0.00039043,7]
[314082351,1707963065311,-325.20617772,0.00039043,7]
[314082352,1707963065320,-500.0,0.00039043,7]
[314082353,1707963065330,-615.51460563,0.00039043,7]
[314082354,1707963065340,-828.86,0.00039091,2]
[314082355,1707963065351,-960.6,0.00039178,7]
[314082356,1707963065362,-1581.16,0.00039178,7]
[314082357,1707963065373,-500.0,0.00039178,7]
[314082358,1707963065383,-500.0,0.00039178,7]
[314082359,1707963065393,-500.0,0.00039178,7]
[314082360,1707963065403,-2037.84,0.00039178,7]
[314082361,1707963065413,-530.90120185,0.00039178,7]
[314082362,1707963065423,-500.0,0.00039178,7]
[314082363,1707963065433,-500.0,0.00039178,7]
[314082364,1707963065444,-500.0,0.00039178,7]
[314082365,1707963065454,-500.0,0.00039178,7]
[314082366,1707963065465,-770.42,0.00039178,7]
[314082367,1707963065475,-1096.71,0.00039178,7]
[314082368,1707963065485,-1081.2,0.00039178,7]
[314082369,1707963065495,-500.0,0.00039178,7]
[314082370,1707963065506,-500.0,0.00039178,7]
[314082371,1707963065516,-520.05,0.00039178,7]
[314082372,1707963065526,-918.55,0.00039178,7]
[314082373,1707963065537,-500.0,0.00039178,7]
[314082374,1707963065547,-500.0,0.00039178,7]
[314082375,1707963065557,-926.67,0.00039178,7]
[314082376,1707963065567,-1098.7,0.00039178,7]
[314082377,1707963065577,-500.0,0.00039178,7]
[314082378,1707963065587,-500.0,0.00039178,7]
[314082379,1707963065596,-567.68,0.00039178,7]
[314082380,1707963065606,-2422.19,0.00039178,7]
[314082381,1707963065615,-500.0,0.00039178,7]
[314082382,1707963065624,-500.0,0.00039178,7]
[314082383,1707963065634,-500.0,0.00039178,7]
[314082384,1707963065643,-535.8,0.00039178,7]
[314082385,1707963065652,-497.00341748,0.00039178,7]
[314082386,1707963065662,-500.0,0.00039178,7]
[314082387,1707963065671,-500.0,0.00039178,7]
[314082388,1707963065680,-256.84,0.0003926,2]
[314082389,1707963065689,-500.0,0.00039316,7]
[314082390,1707963065700,-500.0,0.00039316,7]
[314082391,1707963065710,-500.0,0.00039316,7]
[314082392,1707963065719,-1000.0,0.00039316,7]
[314082393,1707963065728,-505.83057116,0.00039316,7]
[314082394,1707963065738,-261.09548647,0.00039316,7]
[314082395,1707963065747,-500.0,0.00039316,7]
[314082396,1707963065757,-195.16645642,0.00039316,7]
[314082397,1707963065766,-196.7197671,0.00039316,7]
[314082398,1707963065776,-360.92,0.00039316,7]
[314082399,1707963065785,-345.24721411,0.00039316,7]
[314082400,1707963065795,-500.0,0.00039317,7]
[314082401,1707963065804,-247.5209141,0.00039317,7]
[314082402,1707963065814,-150.12,0.00039317,7]
[314082403,1707963065823,-198.16890967,0.00039317,7]
[314082404,1707963065833,-217.57458823,0.00039317,7]
[314082405,1707963065843,-50000.0,0.00039335,30]
[314082406,1707963065852,-50000.0,0.00039335,30]
[314082407,1707963065863,-301.11,0.000394,7]
[314082408,1707963065873,-960.6,0.00039452,7]
[314082409,1707963065883,-1581.16,0.00039452,7]
[314082410,1707963065893,-500.0,0.00039452,7]
[314082411,1707963065903,-500.0,0.00039452,7]
[314082412,1707963065913,-500.0,0.00039452,7]
[314082413,1707963065922,-2037.84,0.00039452,7]
[314082414,1707963065932,-500.0,0.00039452,7]
[314082415,1707963065942,-500.0,0.00039452,7]
[314082416,1707963065951,-500.0,0.00039452,7]
[314082417,1707963065962,-500.0,0.00039452,7]
[314082418,1707963065971,-770.42,0.00039452,7]
[314082419,1707963065982,-1096.71,0.00039452,7]
[314082420,1707963065992,-1081.2,0.00039452,7]
[314082421,1707963066002,-500.0,0.00039452,7]
[314082422,1707963066012,-332.85990539,0.00039452,7]
[314082423,1707963066021,-520.05,0.00039452,7]
[314082424,1707963066030,-918.55,0.00039452,7]
[314082425,1707963066040,-500.0,0.00039452,7]
[314082426,1707963066049,-500.0,0.00039452,7]
[314082427,1707963066059,-926.67,0.00039452,7]
[314082428,1707963066068,-1098.7,0.00039452,7]
[314082429,1707963066078,-500.0,0.00039452,7]
[314082430,1707963066088,-500.0,0.00039452,7]
[314082431,1707963066097,-567.68,0.00039452,7]
[314082432,1707963066106,-2422.19,0.00039452,7]
[314082433,1707963066116,-500.0,0.00039452,7]
[314082434,1707963066126,-500.0,0.00039452,7]
[314082435,1707963066136,-535.8,0.00039452,7]
[314082436,1707963066145,-500.0,0.00039452,7]
[314082437,1707963066154,-500.0,0.00039452,7]
[314082438,1707963066163,-500.0,0.0003959,7]
[314082439,1707963066172,-251.19351351,0.0003959,7]
[314082440,1707963066182,-377.85,0.0003959,7]
[314082441,1707963066191,-1000.0,0.0003959,7]
[314082442,1707963066201,-240.0696306,0.0003959,7]
[314082443,1707963066210,-500.0,0.00039591,7]
[314082444,1707963066219,-1040.0,0.00039682,20]
[314082445,1707963066229,-951.0,0.00039682,20]
[314082446,1707963066238,-154.04,0.000397,3]
[314082447,1707963066247,-154.04,0.000397,3]
[314082448,1707963066256,-154.04,0.000397,3]
[314082449,1707963066265,-154.04,0.000397,3]
[314082450,1707963066275,-154.04,0.000397,3]
[314082451,1707963066285,-154.04,0.000397,3]
[314082452,1707963066295,-154.04,0.000397,3]
[314082453,1707963066305,-154.04,0.000397,3]
[314082454,1707963066315,-154.04,0.000397,3]
[314082455,1707963066325,-154.04,0.000397,3]
[314082456,1707963066335,-154.04,0.000397,3]
[314082457,1707963066347,-154.04,0.000397,3]
[314082458,1707963066357,-154.04,0.000397,3]
[314082459,1707963066367,-17511.0,0.000397,3]
[314082460,1707963066376,-550.0,0.00039726,7]
[314082461,1707963066387,-500.0,0.00039726,31]
[314082462,1707963066396,-500.0,0.00039726,31]
[314082463,1707963066406,-500.0,0.00039726,31]
[314082464,1707963066416,-517.84460286,0.00039726,31]
[314082465,1707963066426,-500.0,0.00039726,15]
[314082466,1707963066436,-960.6,0.00039726,7]
[314082467,1707963066526,-1581.16,0.00039726,7]
[314082468,1707963066537,-400.0,0.00039726,7]
[314082469,1707963066547,-500.0,0.00039726,7]
[314082470,1707963066557,-500.0,0.00039726,7]
[314082471,1707963066567,-2037.84,0.00039726,7]
[314082472,1707963066577,-500.0,0.00039726,7]
[314082473,1707963066587,-299.0,0.00039726,7]
[314082474,1707963066597,-500.0,0.00039726,7]
[314082475,1707963066607,-500.0,0.00039726,7]
[314082476,1707963066616,-770.42,0.00039726,7]
[314082477,1707963066626,-1096.71,0.00039726,7]
[314082478,1707963066636,-1081.2,0.00039726,7]
[314082479,1707963066646,-500.0,0.00039726,7]
[314082480,1707963066656,-520.05,0.00039726,7]
[314082481,1707963066666,-918.55,0.00039726,7]
[314082482,1707963066675,-500.0,0.00039726,7]
[314082483,1707963066686,-500.0,0.00039726,7]
[314082484,1707963066696,-926.67,0.00039726,7]
[314082485,1707963066705,-1098.7,0.00039726,7]
[314082486,1707963066715,-500.0,0.00039726,7]
[314082487,1707963066724,-170.4768538,0.00039726,7]
[314082488,1707963066734,-567.68,0.00039726,7]
[314082489,1707963066744,-2422.19,0.00039726,7]
[314082490,1707963066755,-500.0,0.00039726,7]
[314082491,1707963066765,-500.0,0.00039726,7]
[314082492,1707963066775,-535.8,0.00039726,7]
[314082493,1707963066785,-500.0,0.00039726,7]
[314082494,1707963066794,-500.0,0.00039726,7]
[314082495,1707963066804,-888.0,0.00039747,2]
[314082496,1707963066813,-3295.040267,0.00039797,2]
[314082497,1707963066823,-1085.25,0.000398,20]
[314082498,1707963066832,-247025.721898,0.000398,30]
[314082499,1707963067026,-206798.7137874,0.000398,30]
[314082500,1707963067048,-1114.53207028,0.000398,30]
[314082501,1707963067089,-500.0,0.00035616,7]
[314082502,1707963067109,-38190.27298433,0.000398,30]
[314082503,1707963067580,-500.0,0.00035616,7]
[314082504,1707963067591,-500.0,0.0003589,7]
[314082505,1707963067600,-500.0,0.00036164,7]
[314082506,1707963067611,-500.0,0.00036438,7]
[314082507,1707963067620,-597.39513506,0.00038356,7]
[314082508,1707963067630,-447.18317079,0.00039178,7]
[314082509,1707963067640,-535.902148,0.00039773,2]
[314082510,1707963067650,-22858.72644253,0.000398,30]
[314082511,1707963067660,-151.0,0.000398,7]
[314082512,1707963067669,-151.0,0.000398,7]
[314082513,1707963067679,-151.0,0.000398,7]
[314082514,1707963067689,-151.0,0.000398,7]
[314082515,1707963067702,-210.683507,0.000398,7]
[314082516,1707963067712,-4308.44594517,0.000398,2]
[314082517,1707963067722,-210.837961,0.000398,7]
[314082518,1707963067731,-210.837961,0.000398,7]
[314082519,1707963067741,-794.15706608,0.00039864,7]
[314082520,1707963067750,-500.0,0.00039865,7]
[314082521,1707963067760,-162542.03649682,0.000399,4]
[314082522,1707963067770,-150.0,0.00039915,7]
[314082523,1707963067779,-203.0,0.00039984,13]
[314082524,1707963067790,-1883.69487439,0.00039994,2]
[314082525,1707963067799,-5747.19842254,0.00039994,2]
[314082526,1707963067809,-550.0,0.0004,7]
[314082527,1707963067819,-12440.07,0.0004,10]
[314082528,1707963067829,-1000.0,0.0004,120]
[314082529,1707963068102,-1509.0,0.0004,120]
[314082530,1707963068116,-284.62550287,0.0004,30]
[314082531,1707963068126,-960.6,0.0004,7]
[314082532,1707963068136,-500.0,0.0004,7]
[314082533,1707963068145,-500.0,0.0004,7]
[314082534,1707963068155,-2037.84,0.0004,7]
[314082535,1707963068165,-500.0,0.0004,7]
[314082536,1707963068175,-500.0,0.0004,7]
[314082537,1707963068184,-770.42,0.0004,7]
[314082538,1707963068193,-1096.71,0.0004,7]
[314082539,1707963068205,-1081.2,0.0004,7]
[314082540,1707963068215,-594.13101324,0.0004,7]
[314082541,1707963068224,-520.05,0.0004,7]
[314082542,1707963068233,-918.55,0.0004,7]
[314082543,1707963068243,-176.83472362,0.0004,7]
[314082544,1707963068252,-500.0,0.0004,7]
[314082545,1707963068262,-926.67,0.0004,7]
[314082546,1707963068272,-1098.7,0.0004,7]
[314082547,1707963068282,-500.0,0.0004,7]
[314082548,1707963068292,-567.68,0.0004,7]
[314082549,1707963068302,-2422.19,0.0004,7]
[314082550,1707963068316,-247.97472385,0.0004,7]
[314082551,1707963068326,-500.0,0.0004,7]
[314082552,1707963068338,-535.8,0.0004,7]
[314082553,1707963068350,-528.46360919,0.0004,7]
[314082554,1707963068361,-500.0,0.0004,7]
[314082555,1707963068371,-165.24115021,0.00040008,30]
[314082556,1707963068384,-150.91484715,0.00040021,30]
[314082557,1707963068394,-1040.0,0.00040091,20]
[314082558,1707963068404,-951.0,0.00040091,20]
[314082559,1707963068414,-158.12147065,0.00040108,30]
[314082560,1707963068426,-155.45223204,0.0004011,7]
[314082561,1707963068437,-155.97716759,0.00040134,30]
[314082562,1707963068447,-500.0,0.00040139,7]
[314082563,1707963068457,-246.57475216,0.00040171,2]
[314082564,1707963068466,-150.0,0.00040176,2]
[314082565,1707963068476,-166.69141601,0.00040209,30]
[314082566,1707963068485,-150.0,0.00040254,2]
[314082567,1707963068494,-155.67934134,0.00040258,30]
[314082568,1707963068503,-550.0,0.00040273,7]
[314082569,1707963068513,-960.6,0.00040273,7]
[314082570,1707963068523,-500.0,0.00040273,7]
[314082571,1707963068533,-500.0,0.00040273,7]
[314082572,1707963068542,-2037.84,0.00040273,7]
[314082573,1707963068552,-500.0,0.00040273,7]
[314082574,1707963068562,-500.0,0.00040273,7]
[314082575,1707963068571,-770.42,0.00040273,7]
[314082576,1707963068581,-1096.71,0.00040273,7]
[314082577,1707963068590,-1081.2,0.00040273,7]
[314082578,1707963068600,-520.05,0.00040273,7]
[314082579,1707963068609,-918.55,0.00040273,7]
[314082580,1707963068618,-500.0,0.00040273,7]
[314082581,1707963068627,-926.67,0.00040273,7]
[314082582,1707963068636,-1098.7,0.00040273,7]
[314082583,1707963068646,-567.68,0.00040273,7]
[314082584,1707963068655,-2422.19,0.00040273,7]
[314082585,1707963068664,-500.0,0.00040273,7]
[314082586,1707963068673,-535.8,0.00040273,7]
[314082587,1707963068682,-500.0,0.00040273,7]
[314082588,1707963068692,-1272.57842368,0.00040298,5]
[314082589,1707963068703,-216.0,0.000403,14]
[314082590,1707963068712,-1010.0,0.000403,42]
[314082591,1707963068721,-17511.0,0.000403,5]
[314082592,1707963068731,-197.0,0.00040344,7]
[314082593,1707963068740,-165.24115021,0.00040367,30]
[314082594,1707963068749,-15864.8085563,0.00040372,2]
[314082595,1707963068760,-151.0,0.0004038,5]
[314082596,1707963068771,-916.89330034,0.00040385,2]
[314082597,1707963068782,-171.0,0.00040395,7]
[314082598,1707963068793,-157.25607752,0.00040397,30]
[314082599,1707963068803,-500.0,0.00040413,7]
[314082600,1707963068814,-150.0,0.00040429,2]
[314082601,1707963068825,-166.69141601,0.00040441,30]
[314082602,1707963068836,-150.0,0.00040454,2]
[314082603,1707963068846,-159.69045391,0.00040462,30]
[314082604,1707963068856,-249.05984,0.0004049,4]
[314082605,1707963068867,-153.51400752,0.00040491,2]
[314082606,1707963068878,-150.0,0.00040496,2]
[314082607,1707963068889,-157.58389201,0.00040498,30]
[314082608,1707963068900,-202.0,0.000405,30]
[314082609,1707963068911,-1040.0,0.000405,20]
[314082610,1707963068922,-951.0,0.000405,20]
[314082611,1707963068932,-158.12147065,0.00040519,30]
[314082612,1707963068942,-550.0,0.00040547,7]
[314082613,1707963068953,-960.6,0.00040547,7]
[314082614,1707963068962,-577.94699726,0.00040547,7]
[314082615,1707963068972,-500.0,0.00040547,7]
[314082616,1707963068981,-2037.84,0.00040547,7]
[314082617,1707963068991,-500.0,0.00040547,7]
[314082618,1707963069000,-500.0,0.00040547,7]
[314082619,1707963069009,-770.42,0.00040547,7]
[314082620,1707963069018,-1096.71,0.00040547,7]
[314082621,1707963069028,-1081.2,0.00040547,7]
[314082622,1707963069037,-520.05,0.00040547,7]
[314082623,1707963069046,-918.55,0.00040547,7]
[314082624,1707963069057,-500.0,0.00040547,7]
[314082625,1707963069067,-926.67,0.00040547,7]
[314082626,1707963069078,-1098.7,0.00040547,7]
[314082627,1707963069089,-567.68,0.00040547,7]
[314082628,1707963069099,-2422.19,0.00040547,7]
[314082629,1707963069110,-366.54306238,0.00040547,7]
[314082630,1707963069120,-535.8,0.00040547,7]
[314082631,1707963069131,-500.0,0.00040547,7]
[314082632,1707963069142,-236.11705,0.00040587,2]
[314082633,1707963069152,-150.0,0.0004062,2]
[314082634,1707963069162,-166.09822456,0.00040624,30]
[314082635,1707963069173,-150.0,0.00040636,30]
[314082636,1707963069184,-300.0,0.00040653,2]
[314082637,1707963069194,-204.421686,0.00040669,15]
[314082638,1707963069205,-200.0,0.00040669,20]
[314082639,1707963069216,-500.0,0.00040669,20]
[314082640,1707963069226,-500.0,0.00040687,7]
[314082641,1707963069235,-366.26694526,0.00040696,12]
[314082642,1707963069243,-1500.0,0.00040696,2]
[314082643,1707963069251,-150.0,0.00040699,2]
[314082644,1707963069260,-150.0,0.00040701,2]
[314082645,1707963069269,-256.84,0.00040733,2]
[314082646,1707963069278,-300.0,0.00040744,2]
[314082647,1707963069288,-151.67358367,0.00040747,2]
[314082648,1707963069297,-150.0,0.00040757,2]
[314082649,1707963069308,-156.29018033,0.00040771,30]
[314082650,1707963069317,-679.79219319,0.00040778,2]
[314082651,1707963069326,-1607.0059,0.00040795,5]
[314082652,1707963069336,-2000.0,0.00040795,5]
[314082653,1707963069347,-300.0,0.00040797,2]
[314082654,1707963069357,-1000.0,0.000408,2]
[314082655,1707963069366,-1000.0,0.000408,30]